bitfinex/quotes_SOLUSD_20230120
["timestamp","ask_amount","ask_price","bid_price","bid_amount"]
[1674185527292,1.92,21.359,21.347,17.0]
[1674185533823,1.92,21.359,21.346,20.0]
[1674185534038,1.92,21.359,21.342,20.0]
[1674185534260,1.92,21.359,21.341,20.0]
[1674185535296,1.92,21.359,21.342,17.0]
[1674185535494,1.92,21.359,21.343,20.0]
[1674185535823,1.92,21.359,21.344,17.0]
[1674185536232,1.92,21.359,21.345,20.0]
[1674185536644,18.92,21.359,21.345,20.0]
[1674185536855,10.0,21.358,21.345,20.0]
[1674185537065,1.92,21.357,21.341,20.0]
[1674185537278,1.92,21.357,21.342,17.0]
[1674185537491,1.92,21.357,21.343,20.0]
[1674185538322,1.92,21.357,21.332,36.18313204]
[1674185538527,45.12,21.356,21.33,24.93]
[1674185538737,18.92,21.355,21.33,24.93]
[1674185539165,10.0,21.354,21.33,14.93]
[1674185539387,10.0,21.352,21.33,14.93]
[1674185539579,10.0,21.35,21.33,14.93]
[1674185539795,0.96,21.349,21.33,14.93]
[1674185540021,0.96,21.348,21.33,14.93]
[1674185540230,0.96,21.347,21.33,14.93]
[1674185540436,0.96,21.346,21.331,10.0]
[1674185540758,0.96,21.345,21.332,17.0]
[1674185541160,10.0,21.35,21.332,17.0]
[1674185541384,0.96,21.349,21.332,17.0]
[1674185541590,0.96,21.348,21.333,20.0]
[1674185541795,0.96,21.348,21.334,17.0]
[1674185542015,0.96,21.348,21.335,20.0]
[1674185542242,0.96,21.348,21.336,17.0]
[1674185542861,0.96,21.348,21.337,20.0]
[1674185543073,0.96,21.348,21.338,17.0]
[1674185546437,0.96,21.348,21.337,20.0]
[1674185546627,0.96,21.348,21.332,20.0]
[1674185546837,0.96,21.348,21.333,17.0]
[1674185547063,0.96,21.348,21.334,20.0]
[1674185547282,0.96,21.348,21.335,17.0]
[1674185547903,0.96,21.348,21.336,20.0]
[1674185548107,0.96,21.349,21.337,17.0]
[1674185548320,1.92,21.349,21.337,17.0]
[1674185550837,1.92,21.349,21.33,14.93]
[1674185550838,21.92,21.349,21.33,14.93]
[1674185551053,17.96,21.348,21.33,14.93]
[1674185551479,10.96,21.347,21.33,14.93]
[1674185551774,0.96,21.346,21.33,14.93]
[1674185551994,0.96,21.345,21.33,14.93]
[1674185552210,0.96,21.344,21.33,14.93]
[1674185552626,0.96,21.343,21.331,17.0]
[1674185552824,0.96,21.342,21.331,17.0]
[1674185553257,0.96,21.342,21.33,14.93]
[1674185553471,0.96,21.341,21.324,10.0]
[1674185553682,0.96,21.34,21.327,20.0]
[1674185553879,0.96,21.339,21.327,20.0]
[1674185554100,0.96,21.339,21.325,20.0]
[1674185554307,10.96,21.339,21.325,20.0]
[1674185554519,10.96,21.339,21.326,17.0]
[1674185554721,10.96,21.339,21.327,20.0]
[1674185555053,10.96,21.339,21.328,17.0]
[1674185561781,10.96,21.339,21.327,20.0]
[1674185561990,0.96,21.338,21.322,20.0]
[1674185562215,0.96,21.337,21.322,20.0]
[1674185562410,0.96,21.336,21.322,20.0]
[1674185563054,0.96,21.336,21.323,17.0]
[1674185563263,0.96,21.337,21.324,20.0]
[1674185563480,0.96,21.338,21.325,17.0]
[1674185563675,0.96,21.337,21.326,20.0]
[1674185563887,0.96,21.337,21.327,17.0]
[1674185564930,10.0,21.339,21.327,17.0]
[1674185568215,1.92,21.338,21.327,17.0]
[1674185572298,1.92,21.338,21.326,20.0]
[1674185572510,1.92,21.338,21.322,20.0]
[1674185572742,1.92,21.338,21.323,17.0]
[1674185572943,1.92,21.338,21.324,20.0]
[1674185580402,10.0,21.337,21.324,20.0]
[1674185580611,1.92,21.336,21.324,20.0]
[1674185582412,18.92,21.336,21.324,20.0]
[1674185582620,10.0,21.335,21.324,20.0]
[1674185582827,1.92,21.334,21.321,20.0]
[1674185583236,1.92,21.334,21.322,10.0]
[1674185583445,1.92,21.334,21.323,20.0]
[1674185583784,1.92,21.334,21.323,37.0]
[1674185587355,10.0,21.337,21.324,10.0]
[1674185587541,1.92,21.336,21.325,37.0]
[1674185589980,10.0,21.339,21.325,37.0]
[1674185590192,0.96,21.338,21.326,10.0]
[1674185590379,0.96,21.339,21.327,37.0]
[1674185590905,10.96,21.339,21.327,37.0]
[1674185591426,0.96,21.338,21.327,37.0]
[1674185592295,0.96,21.338,21.327,20.0]
[1674185592696,0.96,21.338,21.322,20.0]
[1674185593643,0.96,21.338,21.323,17.0]
[1674185593856,0.96,21.338,21.324,20.0]
[1674185594179,0.96,21.338,21.325,17.0]
[1674185594378,0.96,21.338,21.324,20.0]
[1674185594589,0.96,21.338,21.322,20.0]
[1674185594800,0.96,21.338,21.323,10.0]
[1674185595010,0.96,21.338,21.324,20.0]
[1674185595868,0.96,21.338,21.325,17.0]
[1674185596066,0.96,21.338,21.326,20.0]
[1674185599650,10.0,21.337,21.326,20.0]
[1674185599843,1.92,21.336,21.321,20.0]
[1674185600809,1.92,21.336,21.322,17.0]
[1674185601228,1.92,21.336,21.323,20.0]
[1674185610046,1.92,21.336,21.313,10.0]
[1674185610047,10.0,21.335,21.313,10.0]
[1674185610249,18.92,21.334,21.313,10.0]
[1674185610464,10.0,21.333,21.313,10.0]
[1674185610692,10.0,21.331,21.313,10.0]
[1674185610901,0.96,21.33,21.313,10.0]
[1674185611121,0.96,21.329,21.313,10.0]
[1674185611430,0.96,21.328,21.314,17.0]
[1674185613322,10.0,21.332,21.316,10.0]
[1674185613634,10.0,21.332,21.317,37.96]
[1674185614161,10.0,21.332,21.317,37.0]
[1674185614569,1.92,21.331,21.317,37.0]
[1674185615417,1.81545037,21.331,21.317,37.0]
[1674185616894,116.7801,21.333,21.317,37.0]
[1674185617110,116.7801,21.333,21.318,10.96]
[1674185617307,116.7801,21.333,21.32,10.0]
[1674185617530,116.7801,21.333,21.321,17.0]
[1674185619507,10.0,21.332,21.321,17.0]
[1674185620347,10.0,21.332,21.319,17.0]
[1674185620553,10.0,21.332,21.317,20.0]
[1674185620774,10.0,21.332,21.314,10.0]
[1674185620775,1.92,21.331,21.314,10.0]
[1674185621089,1.92,21.331,21.315,20.0]
[1674185622048,1.92,21.331,21.316,17.0]
[1674185622263,1.92,21.331,21.317,20.0]
[1674185622458,1.92,21.331,21.318,17.0]
[1674185622995,1.92,21.331,21.317,20.0]
[1674185623186,1.92,21.331,21.315,20.0]
[1674185624578,1.92,21.331,21.316,17.0]
[1674185624888,1.92,21.331,21.317,20.0]
[1674185631808,1.92,21.331,21.303,6.76929907]
[1674185631809,10.0,21.33,21.312,20.0]
[1674185632020,18.92,21.329,21.311,20.0]
[1674185632255,20.0,21.328,21.303,38.07794405]
[1674185632541,27.96,21.327,21.303,31.30864498]
[1674185632758,0.96,21.326,21.303,31.30864498]
[1674185632967,0.96,21.325,21.303,31.30864498]
[1674185633178,0.96,21.324,21.303,31.30864498]
[1674185633600,0.96,21.323,21.303,31.30864498]
[1674185633809,0.96,21.322,21.312,10.0]
[1674185634024,0.96,21.323,21.311,17.0]
[1674185634238,0.96,21.322,21.308,10.0]
[1674185634432,0.96,21.321,21.308,10.0]
[1674185634648,0.96,21.32,21.308,10.0]
[1674185636064,0.96,21.319,21.304,10.0]
[1674185636222,0.96,21.318,21.304,10.0]
[1674185637074,0.96,21.317,21.303,31.30864498]
[1674185637281,0.96,21.317,21.304,20.0]
[1674185637282,0.96,21.316,21.304,20.0]
[1674185637601,0.96,21.315,21.304,20.0]
[1674185637818,0.96,21.315,21.304,10.0]
[1674185638000,0.96,21.315,21.305,20.0]
[1674185638206,0.96,21.316,21.305,20.0]
[1674185638421,0.96,21.316,21.306,10.0]
[1674185638642,0.96,21.316,21.307,20.0]
[1674185639271,0.96,21.316,21.305,20.0]
[1674185639482,0.96,21.316,21.306,17.0]
[1674185639702,0.96,21.316,21.307,20.0]
[1674185640756,0.96,21.315,21.307,20.0]
[1674185640939,0.96,21.314,21.307,20.0]
[1674185641155,0.96,21.313,21.303,20.0]
[1674185642419,10.0,21.321,21.304,10.0]
[1674185642633,1.92,21.32,21.305,37.0]
[1674185642837,0.96,21.32,21.306,10.0]
[1674185643174,0.96,21.32,21.307,37.0]
[1674185643695,10.0,21.321,21.307,37.0]
[1674185644831,1.92,21.32,21.307,37.0]
[1674185645258,1.92,21.32,21.307,20.0]
[1674185645472,10.0,21.319,21.307,20.0]
[1674185645777,10.0,21.319,21.303,20.0]
[1674185645778,1.92,21.318,21.303,20.0]
[1674185646411,1.92,21.318,21.304,10.0]
[1674185646739,1.92,21.318,21.305,37.0]
[1674185650322,10.0,21.323,21.306,10.0]
[1674185650630,10.0,21.323,21.307,37.0]
[1674185650835,10.0,21.323,21.308,10.0]
[1674185651071,10.0,21.323,21.309,17.0]
[1674185652005,1.92,21.322,21.309,17.0]
[1674185652527,1.92,21.322,21.308,17.0]
[1674185655571,1.92,21.322,21.307,20.0]
[1674185655778,10.0,21.321,21.305,20.0]
[1674185655992,18.92,21.32,21.302,30.0]
[1674185656182,10.0,21.319,21.302,30.0]
[1674185656398,1.92,21.318,21.302,30.0]
[1674185657038,1.92,21.318,21.303,17.0]
[1674185657364,1.92,21.318,21.304,20.0]
[1674185657873,1.92,21.318,21.305,17.0]
[1674185658198,1.92,21.318,21.306,20.0]
[1674185660290,1.92,21.318,21.303,20.0]
[1674185660498,1.92,21.318,21.304,17.0]
[1674185660823,1.92,21.318,21.305,20.0]
[1674185661145,1.92,21.318,21.306,10.0]
[1674185661347,1.92,21.318,21.307,20.0]
[1674185661562,45.17,21.324,21.308,17.0]
[1674185661755,10.0,21.324,21.308,17.0]
[1674185661967,10.0,21.324,21.309,10.0]
[1674185663037,17.96,21.323,21.309,10.0]
[1674185663349,0.96,21.322,21.309,10.0]
[1674185663559,0.96,21.321,21.309,10.0]
[1674185663762,0.96,21.32,21.309,10.0]
[1674185665770,0.96,21.32,21.31,17.0]
[1674185667115,0.96,21.32,21.309,17.0]
[1674185672070,10.0,21.324,21.309,17.0]
[1674185672702,0.96,21.323,21.31,44.93]
[1674185672887,0.96,21.324,21.312,10.0]
[1674185673095,0.96,21.324,21.313,37.0]
[1674185673968,0.96,21.324,21.314,10.0]
[1674185674159,0.96,21.325,21.315,20.0]
[1674185674377,0.96,21.324,21.315,20.0]
[1674185674583,0.96,21.325,21.315,20.0]
[1674185674913,0.96,21.325,21.314,20.0]
[1674185679530,0.96,21.326,21.315,17.0]
[1674185679763,0.96,21.328,21.316,20.0]
[1674185679956,0.96,21.327,21.317,10.0]
[1674185680165,0.96,21.326,21.317,10.0]
[1674185680572,0.96,21.326,21.316,20.0]
[1674185683110,109.9022,21.329,21.317,10.0]
[1674185683324,109.9022,21.329,21.318,17.0]
[1674185684772,10.0,21.328,21.318,17.0]
[1674185684989,10.0,21.328,21.317,17.0]
[1674185686075,8.5,21.328,21.317,17.0]
[1674185686250,8.5,21.328,21.316,20.0]
[1674185686464,1.92,21.327,21.312,20.0]
[1674185686694,1.92,21.327,21.313,17.0]
[1674185687010,1.92,21.327,21.314,20.0]
[1674185687226,1.92,21.327,21.315,17.0]
[1674185687753,1.92,21.327,21.316,20.0]
[1674185690898,1.92,21.327,21.312,20.0]
[1674185691117,1.92,21.327,21.313,17.0]
[1674185691423,1.92,21.327,21.314,20.0]
[1674185695202,1.92,21.327,21.31,14.93]
[1674185695418,1.92,21.327,21.302,46.29233204]
[1674185695419,10.0,21.326,21.302,46.29233204]
[1674185695613,136.5572,21.325,21.302,10.0]
[1674185695946,10.0,21.324,21.302,10.0]
[1674185696155,18.92,21.323,21.302,10.0]
[1674185696383,10.0,21.322,21.302,10.0]
[1674185696589,10.0,21.32,21.302,10.0]
[1674185696787,0.96,21.319,21.302,10.0]
[1674185696987,0.96,21.318,21.302,10.0]
[1674185697198,0.96,21.317,21.303,20.0]
[1674185697535,0.96,21.316,21.304,10.0]
[1674185697738,0.96,21.317,21.306,10.0]
[1674185697933,0.96,21.317,21.307,17.0]
[1674185700350,0.96,21.317,21.306,17.0]
[1674185700560,0.96,21.317,21.307,20.0]
[1674185702562,0.96,21.318,21.307,20.0]
[1674185702779,0.96,21.319,21.308,17.0]
[1674185702998,1.92,21.321,21.308,17.0]
[1674185703504,10.0,21.326,21.31,14.88]
[1674185703735,10.0,21.326,21.311,47.0]
[1674185704691,0.96,21.325,21.311,47.0]
[1674185705001,0.96,21.324,21.311,47.0]
[1674185705182,0.96,21.323,21.311,47.0]
[1674185708564,119.9022,21.329,21.312,0.96]
[1674185708883,109.9022,21.329,21.312,0.96]
[1674185710252,109.9022,21.329,21.313,0.96]
[1674185710564,109.9022,21.329,21.314,0.96]
[1674185711635,10.0,21.328,21.314,0.96]
[1674185712059,10.0,21.328,21.313,0.96]
[1674185712254,10.0,21.328,21.312,0.96]
[1674185712468,1.92,21.327,21.313,1.979]
[1674185714890,1.92,21.327,21.311,42.043]
[1674185715086,1.92,21.327,21.31,14.88]
[1674185715302,10.0,21.325,21.31,14.88]
[1674185715516,54.09,21.324,21.31,14.88]
[1674185715838,10.0,21.323,21.31,14.88]
[1674185716033,1.92,21.322,21.306,5.211]
[1674185716654,1.92,21.322,21.307,37.0]
[1674185728958,10.0,21.321,21.307,37.0]
[1674185729285,1.92,21.32,21.307,37.0]
[1674185732755,9.42,21.321,21.307,37.0]
[1674185734839,1.92,21.32,21.307,37.0]
[1674185737473,9.42,21.321,21.307,37.0]
[1674185738643,0.96,21.32,21.307,37.0]
[1674185738851,1.92,21.32,21.307,37.0]
[1674185741377,9.42,21.321,21.307,37.0]
[1674185741570,1.92,21.32,21.307,37.0]
[1674185743900,1.92,21.32,21.307,20.0]
[1674185744315,18.92,21.32,21.301,20.0]
[1674185744529,10.0,21.319,21.301,20.0]
[1674185744723,1.92,21.318,21.301,20.0]
[1674185745162,10.0,21.317,21.302,17.0]
[1674185745377,1.92,21.316,21.303,20.0]
[1674185745695,10.0,21.315,21.303,20.0]
[1674185745914,1.92,21.314,21.303,20.0]
[1674185746124,1.92,21.314,21.301,20.0]
[1674185746959,10.0,21.315,21.301,20.0]
[1674185747177,10.0,21.317,21.302,27.0]
[1674185747361,0.96,21.316,21.303,20.0]
[1674185747696,0.96,21.316,21.304,17.0]
[1674185748229,0.96,21.316,21.305,20.0]
[1674185748539,0.96,21.315,21.305,20.0]
[1674185748854,0.96,21.314,21.305,20.0]
[1674185750305,0.96,21.315,21.305,20.0]
[1674185750514,0.96,21.316,21.305,20.0]
[1674185750850,0.96,21.315,21.305,20.0]
[1674185751904,0.96,21.316,21.305,20.0]
[1674185752217,1.92,21.316,21.306,17.0]
[1674185752617,1.92,21.316,21.307,20.0]
[1674185753161,0.96,21.315,21.307,20.0]
[1674185753774,0.96,21.315,21.302,20.0]
[1674185754634,0.96,21.315,21.303,17.0]
[1674185754945,0.96,21.315,21.304,20.0]
[1674185756333,0.96,21.315,21.305,17.0]
[1674185756506,0.96,21.315,21.306,20.0]
[1674185758199,0.96,21.315,21.268,244.78019221]
[1674185758200,0.96,21.315,21.302,20.0]
[1674185758414,0.96,21.315,21.303,17.0]
[1674185758632,0.96,21.314,21.304,20.0]
[1674185758824,0.96,21.313,21.304,20.0]
[1674185759025,0.96,21.312,21.304,20.0]
[1674185759237,0.96,21.312,21.303,20.0]
[1674185760223,0.96,21.312,21.292,64.88683702]
[1674185760224,0.96,21.311,21.301,20.0]
[1674185760437,0.96,21.31,21.297,20.0]
[1674185760746,0.96,21.309,21.297,20.0]
[1674185761276,0.96,21.308,21.297,20.0]
[1674185762435,0.96,21.308,21.298,17.0]
[1674185762741,10.0,21.317,21.299,20.0]
[1674185762932,10.0,21.315,21.299,20.0]
[1674185763140,1.92,21.314,21.3,17.0]
[1674185763368,10.0,21.315,21.3,17.0]
[1674185763587,10.0,21.315,21.301,20.0]
[1674185763794,10.0,21.315,21.303,10.0]
[1674185764326,10.0,21.315,21.304,20.0]
[1674185764713,1.92,21.314,21.304,20.0]
[1674185764942,10.0,21.313,21.304,20.0]
[1674185765136,1.92,21.312,21.301,20.0]
[1674185765789,1.92,21.312,21.302,10.0]
[1674185765975,1.92,21.312,21.303,20.0]
[1674185766622,1.92,21.312,21.301,20.0]
[1674185768827,1.92,21.312,21.298,20.0]
[1674185769044,1.92,21.312,21.297,20.0]
[1674185769254,1.92,21.312,21.298,17.0]
[1674185769570,1.92,21.312,21.299,20.0]
[1674185770942,1.92,21.312,21.3,17.0]
[1674185771136,1.92,21.312,21.301,20.0]
[1674185772433,10.0,21.313,21.301,20.0]
[1674185772635,10.0,21.313,21.302,17.0]
[1674185773166,10.0,21.313,21.303,20.0]
[1674185773591,0.96,21.312,21.303,20.0]
[1674185773778,1.92,21.312,21.303,20.0]
[1674185775166,1.92,21.312,21.298,20.0]
[1674185775365,1.92,21.312,21.299,17.0]
[1674185775579,1.92,21.312,21.3,20.0]
[1674185775891,1.92,21.312,21.301,17.0]
[1674185776304,1.92,21.312,21.302,20.0]
[1674185780295,1.92,21.312,21.297,20.0]
[1674185781457,1.92,21.312,21.298,17.0]
[1674185781667,1.92,21.312,21.299,20.0]
[1674185782641,10.0,21.311,21.299,20.0]
[1674185782817,1.92,21.31,21.299,20.0]
[1674185783027,1.92,21.31,21.297,20.0]
[1674185783976,1.92,21.31,21.29,14.93]
[1674185783977,35.2,21.309,21.292,20.0]
[1674185784189,35.2,21.309,21.29,14.93]
[1674185784190,0.96,21.308,21.29,14.93]
[1674185784403,36.16,21.307,21.285,98.8801]
[1674185784605,17.96,21.306,21.285,98.8801]
[1674185784814,36.17,21.305,21.285,98.8801]
[1674185785031,17.96,21.304,21.285,98.8801]
[1674185785251,0.96,21.303,21.282,111.3878]
[1674185785446,0.96,21.302,21.29,14.97]
[1674185785771,0.96,21.301,21.29,14.97]
[1674185785981,0.96,21.3,21.29,14.97]
[1674185786195,0.96,21.299,21.29,14.97]
[1674185787243,0.96,21.299,21.291,20.0]
[1674185787554,0.96,21.298,21.291,20.0]
[1674185787769,0.96,21.297,21.284,20.0]
[1674185788100,0.96,21.296,21.284,20.0]
[1674185788612,0.96,21.296,21.29,14.95]
[1674185788812,0.96,21.296,21.285,17.0]
[1674185789027,0.96,21.296,21.283,17.0]
[1674185789223,0.96,21.296,21.283,16.5]
[1674185789566,0.96,21.296,21.28,15.11]
[1674185790280,0.96,21.296,21.286,115.0]
[1674185790487,0.96,21.295,21.281,115.0]
[1674185790696,0.96,21.294,21.282,20.0]
[1674185791861,10.0,21.295,21.282,20.0]
[1674185793035,1.92,21.294,21.282,20.0]
[1674185795259,111.8946,21.296,21.282,20.0]
[1674185795459,108.6144,21.3,21.29,15.03]
[1674185796706,1.92,21.298,21.29,15.03]
[1674185797979,1.92,21.298,21.283,17.0]
[1674185798197,1.92,21.298,21.284,20.0]
[1674185798400,1.92,21.298,21.285,17.0]
[1674185798593,1.92,21.298,21.286,20.0]
[1674185798802,1.92,21.298,21.284,20.0]
[1674185798803,10.0,21.297,21.284,20.0]
[1674185799031,1.92,21.296,21.284,20.0]
[1674185799247,1.92,21.296,21.282,20.0]
[1674185799773,10.0,21.295,21.282,20.0]
[1674185800086,1.92,21.294,21.282,20.0]
[1674185800613,1.92,21.294,21.283,17.0]
[1674185800826,1.92,21.294,21.284,20.0]
[1674185801871,1.92,21.294,21.282,20.0]
[1674185807641,1.92,21.294,21.281,20.0]
[1674185809136,1.92,21.294,21.282,17.0]
[1674185809329,1.92,21.294,21.283,20.0]
[1674185811859,1.92,21.294,21.28,15.11]
[1674185812066,18.92,21.294,21.273,115.0]
[1674185812277,10.0,21.293,21.274,17.0]
[1674185812492,18.92,21.292,21.274,17.0]
[1674185812917,18.92,21.292,21.273,115.0]
[1674185812918,10.0,21.291,21.273,115.0]
[1674185813105,33.95,21.29,21.273,112.5]
[1674185813522,45.23,21.289,21.274,20.0]
[1674185813758,1.92,21.288,21.273,112.5]
[1674185815121,10.0,21.287,21.273,112.5]
[1674185815324,1.92,21.286,21.273,112.5]
[1674185815741,1.92,21.286,21.274,20.0]
[1674185816368,1.92,21.286,21.275,17.0]
[1674185816587,1.92,21.286,21.276,20.0]
[1674185817649,1.92,21.286,21.274,20.0]
[1674185818694,1.92,21.286,21.275,10.0]
[1674185818911,1.92,21.286,21.276,20.0]
[1674185819128,1.92,21.286,21.274,20.0]
[1674185819324,1.92,21.286,21.275,17.0]
[1674185819534,1.92,21.286,21.276,20.0]
[1674185822180,1.92,21.286,21.272,20.0]
[1674185822393,1.92,21.286,21.271,20.0]
[1674185822700,10.0,21.285,21.266,10.0]
[1674185822915,18.92,21.284,21.264,10.0]
[1674185823125,10.0,21.283,21.264,10.0]
[1674185823439,10.0,21.283,21.261,114.6131]
[1674185823634,1.92,21.282,21.261,114.6131]
[1674185824578,1.92,21.282,21.266,17.0]
[1674185824791,15.03,21.28,21.267,20.0]
[1674185825000,11.92,21.279,21.266,20.0]
[1674185826070,11.92,21.279,21.267,17.0]
[1674185826374,11.92,21.279,21.266,20.0]
[1674185826779,11.92,21.279,21.264,20.0]
[1674185826989,11.92,21.279,21.265,129.5]
[1674185827220,0.96,21.279,21.267,10.0]
[1674185827434,0.96,21.281,21.268,17.0]
[1674185827633,0.96,21.281,21.27,14.99]
[1674185827867,0.96,21.281,21.271,17.0]
[1674185828900,0.96,21.28,21.271,17.0]
[1674185832269,10.0,21.282,21.271,17.0]
[1674185837750,1.92,21.281,21.271,17.0]
[1674185840380,10.0,21.283,21.271,17.0]
[1674185840705,45.23,21.293,21.272,21.92]
[1674185841006,10.0,21.293,21.28,15.03]
[1674185841223,10.0,21.298,21.281,30.0]
[1674185841636,10.0,21.298,21.282,17.0]
[1674185841862,10.0,21.298,21.283,10.0]
[1674185842046,10.0,21.298,21.284,20.0]
[1674185842258,151.0193,21.299,21.281,20.0]
[1674185842462,115.7993,21.299,21.282,17.0]
[1674185842692,115.7993,21.299,21.283,20.0]
[1674185843008,10.0,21.298,21.285,10.0]
[1674185843217,10.0,21.298,21.286,37.0]
[1674185844150,11.92,21.295,21.286,20.0]
[1674185844361,11.92,21.295,21.281,20.0]
[1674185849626,11.92,21.295,21.28,15.03]
[1674185849820,35.22,21.294,21.274,106.6823]
[1674185850030,11.92,21.293,21.28,14.95]
[1674185851082,11.92,21.293,21.281,17.0]
[1674185851605,11.92,21.293,21.28,14.95]
[1674185854052,11.92,21.293,21.275,10.0]
[1674185854233,11.92,21.293,21.276,37.0]
[1674185855502,10.0,21.291,21.276,37.0]
[1674185855711,1.92,21.29,21.276,37.0]
[1674185862261,33.83,21.29,21.276,20.0]
[1674185862472,69.06,21.29,21.271,20.0]
[1674185862880,10.0,21.289,21.266,10.0]
[1674185863096,74.15,21.288,21.267,20.0]
[1674185863306,10.0,21.287,21.266,10.0]
[1674185863510,18.92,21.286,21.267,17.0]
[1674185863947,10.0,21.285,21.265,112.5]
[1674185864161,1.92,21.284,21.265,112.5]
[1674185864473,18.92,21.284,21.265,112.5]
[1674185864683,10.0,21.283,21.266,20.0]
[1674185864892,1.92,21.282,21.266,20.0]
[1674185865211,1.92,21.282,21.267,17.0]
[1674185865422,1.92,21.282,21.266,17.0]
[1674185866557,1.92,21.282,21.267,20.0]
[1674185866766,1.92,21.282,21.268,17.0]
[1674185868678,1.92,21.282,21.267,20.0]
[1674185868995,10.0,21.281,21.266,20.0]
[1674185869211,1.92,21.28,21.266,20.0]
[1674185870580,10.0,21.279,21.266,20.0]
[1674185870790,1.92,21.278,21.266,20.0]
[1674185875523,1.92,21.278,21.267,17.0]
[1674185876255,10.0,21.281,21.267,17.0]
[1674185877732,1.92,21.28,21.267,17.0]
[1674185878044,1.92,21.28,21.266,20.0]
[1674185878451,10.0,21.279,21.266,20.0]
[1674185878652,1.92,21.278,21.266,20.0]
[1674185880249,1.92,21.278,21.267,17.0]
[1674185882656,10.0,21.281,21.267,17.0]
[1674185883922,1.92,21.28,21.267,17.0]
[1674185886767,109.3691,21.282,21.268,10.0]
[1674185886981,0.96,21.281,21.269,17.0]
[1674185889189,0.96,21.281,21.27,30.0]
[1674185889380,113.679,21.285,21.271,17.0]